bitfinex-derivatives/quotes_ETHF0:USTF0_20260312
["timestamp","ask_amount","ask_price","bid_price","bid_amount"]
[1773333450236,0.57962926,2070.9,2070.1,0.24149]
[1773333450443,0.00593808,2071.1,2070.4,0.53569949]
[1773333450846,0.57962926,2071.3,2070.4,0.53569949]
[1773333451040,0.57962926,2071.5,2070.4,0.53569949]
[1773333451441,0.57962926,2071.7,2070.6,0.53569949]
[1773333451846,0.57962926,2071.6,2070.8,0.53569949]
[1773333452542,0.57962926,2071.6,2070.4,0.53569949]
[1773333453550,0.57962926,2071.6,2070.6,0.53569949]
[1773333453948,0.57962926,2071.5,2070.6,0.53569949]
[1773333454148,0.57962926,2071.4,2070.1,0.53569949]
[1773333456948,0.57962926,2071.3,2070.1,0.53569949]
[1773333457352,0.24135,2071.4,2070.1,0.53569949]
[1773333457353,0.57962926,2071.1,2070.1,0.53569949]
[1773333457556,0.57962926,2071.3,2070.1,0.53569949]
[1773333457757,0.57962926,2071.3,2070.3,0.53569949]
[1773333460146,0.57962926,2071.1,2069.9,0.53569949]
[1773333460352,0.57962926,2070.9,2069.9,0.53569949]
[1773333460659,0.57962926,2070.3,2069.5,0.56360746]
[1773333461157,6.45400877,2070.5,2069.5,0.56360746]
[1773333462054,0.57962926,2070.7,2069.8,0.53569949]
[1773333466565,0.59240695,2070.9,2069.8,0.53569949]
[1773333467060,6.47142286,2070.9,2069.8,0.53569949]
[1773333467361,5.87901591,2070.9,2070.0,0.54506973]
[1773333467660,0.59240695,2071.2,2070.2,0.54506973]
[1773333470365,0.59240695,2071.2,2070.4,0.59014447]
[1773333470664,5.88029054,2071.3,2070.4,0.59014447]
[1773333470858,0.58601747,2071.4,2070.4,0.59014447]
[1773333471258,6.327,2071.5,2070.6,0.59014447]
[1773333471560,0.005687,2071.7,2071.0,0.59014447]
[1773333471766,0.60418703,2072.2,2071.3,0.59014447]
[1773333472760,0.61029646,2072.2,2071.4,0.59014447]
[1773333472961,0.02427899,2072.2,2071.4,0.59014447]
[1773333473161,0.61029646,2072.2,2071.4,0.59014447]
[1773333473764,0.02427899,2072.2,2071.4,0.83240447]
[1773333473964,0.02427899,2072.2,2071.5,0.83633447]
[1773333474167,0.58601747,2072.6,2071.9,0.59014447]
[1773333474462,0.58601747,2072.6,2072.4,0.022]
[1773333474463,0.56401747,2072.6,2072.4,0.022]
[1773333474860,0.52001741,2072.6,2072.4,0.022]
[1773333475065,0.60801747,2072.7,2072.4,0.022]
[1773333475262,0.61220979,2072.7,2072.4,0.022]
[1773333475462,0.63001747,2072.6,2072.2,0.022]
[1773333475658,0.63001747,2072.6,2072.2,0.61214447]
[1773333475866,0.63001747,2072.6,2072.2,0.022]
[1773333476068,0.63001747,2072.6,2072.0,0.022]
[1773333476267,0.58601747,2072.4,2072.0,0.61214447]
[1773333476470,0.65201747,2072.5,2072.0,0.61214447]
[1773333477561,0.066,2072.5,2072.0,0.61214447]
[1773333478173,0.65201747,2072.5,2072.0,0.61214447]
[1773333478668,0.65201747,2072.5,2072.0,0.022]
[1773333480274,0.65201747,2072.5,2072.0,0.61214447]
[1773333480275,0.066,2072.5,2072.0,0.61214447]
[1773333480669,0.65201747,2072.5,2072.0,0.022]
[1773333481271,0.65201747,2072.5,2072.0,0.61214447]
[1773333481470,0.066,2072.5,2072.0,0.61214447]
[1773333481876,0.65201747,2072.5,2071.8,0.022]
[1773333482174,0.67401747,2072.4,2071.8,0.61214447]
[1773333482770,0.67401747,2072.4,2071.8,0.022]
[1773333483667,0.67401747,2072.4,2071.8,0.61214447]
[1773333484481,0.00419232,2072.7,2071.8,0.61214447]
[1773333484776,0.00419232,2072.7,2072.0,0.59014447]
[1773333484973,0.58601747,2072.9,2072.5,0.022]
[1773333485174,0.58601747,2072.9,2072.1,0.022]
[1773333485479,9.10006189,2073.0,2072.1,0.61214447]
[1773333485480,0.59020979,2072.8,2072.1,0.61214447]
[1773333485677,6.30519232,2073.0,2072.1,0.61214447]
[1773333485678,0.65201747,2072.7,2072.1,0.61214447]
[1773333485878,0.65709414,2072.7,2072.1,0.61214447]
[1773333486980,0.07107667,2072.7,2072.1,0.61214447]
[1773333488786,0.65709414,2072.7,2072.1,0.022]
[1773333489379,0.088,2072.6,2071.9,0.022]
[1773333489578,0.58601747,2072.5,2071.9,0.022]
[1773333490284,0.58601747,2072.5,2071.7,0.022]
[1773333490579,0.58601747,2072.3,2071.7,0.022]
[1773333490779,0.58601747,2072.3,2071.7,0.61214447]
[1773333491175,0.11,2072.4,2071.7,0.61214447]
[1773333491379,0.69601747,2072.4,2071.7,0.61214447]
[1773333492078,0.69601747,2072.4,2071.7,0.022]
[1773333492482,0.58601747,2072.3,2071.3,0.02663448]
[1773333492685,0.58601747,2071.9,2071.3,0.02663448]
[1773333493684,3.38088704,2071.9,2071.1,0.022]
[1773333493983,0.58601747,2071.8,2071.1,0.022]
[1773333494890,0.58601747,2071.8,2071.1,0.02644432]
[1773333495090,0.58601747,2071.8,2070.9,0.022]
[1773333495389,0.58601747,2071.6,2070.9,0.022]
[1773333495691,0.58601747,2071.5,2070.5,0.61214447]
[1773333496082,0.58601747,2071.5,2070.5,0.61603731]
[1773333496789,0.58601747,2071.5,2070.5,0.02589284]
[1773333496986,0.58601747,2071.2,2070.5,0.02589284]
[1773333497283,0.59169079,2071.2,2070.5,0.02589284]
[1773333497690,0.59169079,2071.2,2070.5,0.61603731]
[1773333498885,0.00567332,2071.2,2070.5,0.61603731]
[1773333500299,0.59169079,2071.2,2070.5,0.61603731]
[1773333502188,0.83493169,2071.8,2070.8,0.54896323]
[1773333503188,0.8390529,2071.8,2070.8,0.54896323]
[1773333503884,0.8390529,2071.8,2070.7,2.79486957]
[1773333504090,0.8390529,2071.8,2071.0,0.54896323]
[1773333504287,0.59293169,2071.7,2070.7,0.54896323]
[1773333505491,0.59293169,2071.7,2070.8,0.54896323]
[1773333507189,0.59293169,2071.7,2070.9,0.54896323]
[1773333507393,0.59293169,2071.7,2071.0,0.54896323]
[1773333507995,0.59293169,2071.7,2070.7,0.54896323]
[1773333508992,0.24612121,2071.8,2070.9,0.54896323]
[1773333509199,0.59293169,2071.7,2070.9,0.54896323]
[1773333510702,0.59293169,2071.6,2070.6,0.54896323]
[1773333513803,0.24133,2071.7,2070.5,0.57485607]
[1773333513804,0.59293169,2071.4,2070.5,0.57485607]
[1773333515601,6.325,2071.6,2070.7,0.54896323]
[1773333515804,0.59293169,2071.6,2070.7,0.54896323]
[1773333516013,0.8390529,2071.8,2070.7,0.54896323]
[1773333516306,0.59293169,2071.7,2070.7,0.54896323]
[1773333518198,0.59293169,2071.7,2070.8,0.24144]
[1773333518403,0.59293169,2071.7,2070.9,0.54896323]
[1773333522606,6.07703344,2071.8,2070.9,0.54896323]
[1773333522807,6.62199436,2071.8,2070.9,0.54896323]
[1773333523511,0.54496092,2071.7,2070.9,0.54896323]
[1773333523811,0.54496092,2071.6,2070.7,0.55143396]
[1773333524006,0.54496092,2071.5,2070.7,0.55143396]
[1773333524210,0.54496092,2071.3,2070.5,0.5773268]
[1773333524708,0.54496092,2071.1,2070.5,0.02589284]
[1773333524908,0.54496092,2071.0,2070.3,0.022]
[1773333525109,0.54496092,2071.0,2070.3,0.57343396]
[1773333526112,0.54496092,2071.0,2070.3,0.57719763]
[1773333529418,6.38890167,2071.2,2070.3,0.57719763]
[1773333529610,0.54496092,2071.2,2070.3,0.57719763]
[1773333530615,0.54496092,2071.2,2070.3,0.82060763]
[1773333530917,0.54963674,2071.4,2070.9,0.58066054]
[1773333531116,0.54963674,2071.4,2070.7,0.58066054]
[1773333531412,6.42536811,2071.6,2070.8,0.58066054]
[1773333531612,0.54963674,2072.2,2071.3,0.58066054]
[1773333531912,0.54963674,2072.2,2071.2,2.79486957]
[1773333531913,0.52763674,2072.2,2071.8,0.022]
[1773333532114,0.52763674,2072.2,2071.6,0.022]
[1773333532309,5.87702582,2072.3,2071.4,0.022]
[1773333532310,0.54963674,2072.0,2071.4,0.022]
[1773333532706,0.64298796,2072.0,2071.4,0.02551498]
[1773333533111,9.31349618,2072.0,2071.2,0.022]
[1773333533317,0.68163674,2071.8,2071.0,0.60266054]
[1773333533712,0.68163674,2071.8,2071.0,0.022]
[1773333533921,0.00535122,2072.0,2071.2,3.37553011]
[1773333534216,12.30727788,2072.6,2071.8,0.022]
[1773333534217,6.40820616,2072.4,2071.8,0.022]
[1773333534518,6.40820616,2072.4,2071.6,0.022]
[1773333534519,0.54963674,2072.4,2071.6,0.022]
[1773333534813,5.9339,2072.8,2071.8,0.58066054]
[1773333534814,0.54963674,2072.8,2071.8,0.58066054]
[1773333535216,10.02023833,2073.6,2072.2,0.58066054]
[1773333535512,0.54963674,2073.4,2072.2,0.58066054]
[1773333535816,0.54963674,2073.0,2071.7,0.58066054]
[1773333536018,0.54963674,2073.0,2071.9,0.58066054]
[1773333536523,0.55440042,2073.0,2071.9,0.58066054]
[1773333536822,0.55440042,2073.0,2071.3,40.8]
[1773333536823,0.55440042,2073.0,2071.4,0.58066054]
[1773333537416,0.55440042,2073.0,2071.6,0.58066054]
[1773333539219,0.55440042,2073.0,2071.8,0.58066054]
[1773333539421,0.55440042,2073.0,2072.0,0.58066054]
[1773333539422,0.00476368,2073.0,2072.0,0.58066054]
[1773333539923,0.00476368,2073.0,2072.2,0.58066054]
[1773333540321,0.54963674,2073.4,2073.0,0.23647632]
[1773333540518,0.54963674,2073.4,2072.8,0.58066054]
[1773333541324,0.54963674,2073.8,2072.8,0.58066054]
[1773333541515,0.00446674,2073.4,2072.8,0.58407264]
[1773333541715,0.54963674,2074.1,2072.8,0.58407264]
[1773333542321,0.54963674,2074.1,2073.2,0.60266054]
[1773333542821,0.55505513,2074.1,2073.2,0.60266054]
[1773333543019,0.00541839,2074.1,2073.2,0.60266054]
[1773333543221,0.54963674,2075.2,2074.0,0.58066054]
[1773333543424,0.54963674,2075.4,2074.1,0.58066054]
[1773333544318,0.55587007,2075.4,2074.1,0.58066054]
[1773333545229,0.54963674,2075.2,2073.8,0.58066054]
[1773333545423,0.55587007,2075.4,2074.0,0.58066054]
[1773333546016,0.79054674,2075.3,2074.0,0.58066054]
[1773333546222,0.54963674,2075.2,2074.0,0.58066054]
[1773333547319,0.00623333,2075.4,2074.2,0.58066054]
[1773333547320,0.55587007,2075.4,2074.2,0.58066054]
[1773333547622,0.55587007,2075.4,2074.4,0.58066054]
[1773333547824,0.55587007,2075.4,2074.4,0.58670174]
[1773333549121,0.55587007,2075.4,2074.4,0.0060412]
[1773333549329,0.55587007,2075.4,2074.4,0.58670174]
[1773333550025,0.55587007,2075.4,2074.4,0.0060412]
[1773333550220,0.79677007,2075.4,2074.4,0.0060412]
[1773333550424,0.54963674,2075.3,2074.2,0.58066054]
[1773333550822,0.54963674,2075.3,2073.7,0.58066054]
[1773333551022,0.24094,2075.1,2073.7,0.58066054]
[1773333551222,0.54963674,2074.8,2073.5,0.58066054]
[1773333551427,0.54963674,2074.8,2073.5,0.58527428]
[1773333552330,2.79892582,2075.4,2073.7,0.58066054]
[1773333552331,0.54963674,2075.3,2073.7,0.58066054]
[1773333552727,0.54963674,2075.3,2073.8,0.58066054]
[1773333553425,0.54963674,2075.3,2074.0,0.58066054]
[1773333553623,0.54963674,2075.3,2074.2,0.58066054]
[1773333554632,0.54963674,2075.3,2073.8,0.58066054]
[1773333555032,0.54963674,2075.3,2074.0,0.58066054]
[1773333555824,0.54963674,2075.1,2074.0,0.58066054]
[1773333556633,0.54963674,2074.9,2073.8,0.58066054]
[1773333557629,0.54963674,2074.7,2073.9,0.022]
[1773333558031,0.54963674,2074.7,2073.9,0.60266054]
[1773333558230,0.11,2074.6,2073.9,0.60266054]
[1773333559329,0.65963674,2074.6,2073.9,0.60266054]
[1773333559738,0.11,2074.6,2073.9,0.60266054]
[1773333560034,0.54963674,2075.0,2073.9,0.58066054]
[1773333560332,0.52763674,2075.0,2074.8,0.022]
[1773333560536,0.52763674,2075.0,2074.6,0.022]
[1773333560936,0.044,2075.0,2074.6,0.6566194]
[1773333561333,0.64005153,2074.8,2074.4,0.022]
[1773333561632,0.70605153,2074.9,2074.4,0.6566194]
[1773333561833,0.066,2074.9,2074.4,0.6566194]
[1773333562543,0.00623333,2075.4,2074.4,0.6346194]
[1773333562836,0.62428486,2075.4,2074.8,0.022]
[1773333563230,0.62428486,2075.4,2074.8,0.6566194]
[1773333563435,6.84536521,2076.0,2074.8,0.022]
[1773333563436,0.64005153,2075.2,2074.8,0.022]
[1773333563632,0.64005153,2075.2,2074.8,0.6566194]
[1773333563939,0.00458639,2075.2,2074.8,0.022]
[1773333564141,0.00458639,2075.2,2074.8,0.6566194]
[1773333564344,0.64463792,2075.2,2074.8,0.022]
[1773333564844,0.00458639,2075.2,2074.8,0.6566194]
[1773333565645,0.64463792,2075.2,2074.8,0.022]
[1773333566644,0.73263792,2075.2,2074.6,0.6566194]
[1773333566854,0.73263792,2075.2,2074.6,0.022]
[1773333567549,0.64005153,2075.0,2074.4,0.022]
[1773333568045,0.64005153,2075.0,2074.2,0.6566194]
[1773333568046,0.132,2075.0,2074.2,0.6566194]
[1773333568246,0.77205153,2075.0,2074.2,0.6566194]
[1773333568644,0.132,2075.0,2074.2,0.6566194]
[1773333568842,0.00458639,2075.2,2074.6,0.6346194]
[1773333569243,0.62263792,2075.2,2075.0,0.022]
[1773333569451,0.64005153,2075.7,2075.0,0.6566194]
[1773333569745,6.48077185,2075.7,2075.0,0.6566194]
[1773333569941,0.64005153,2075.9,2075.0,0.6346194]
[1773333570344,0.6450826,2075.9,2075.0,0.63814722]
[1773333570744,0.64005153,2075.8,2075.0,0.63814722]
[1773333571246,0.64005153,2075.4,2074.1,0.6346194]
[1773333572448,0.65746514,2075.3,2074.8,0.022]
[1773333572649,0.64005153,2075.2,2074.6,0.022]
[1773333572853,0.64005153,2075.0,2074.6,0.022]
[1773333573053,0.64005153,2075.0,2074.4,0.022]
[1773333573351,0.64005153,2074.8,2074.2,0.022]
[1773333573551,6.5078423,2074.8,2074.1,0.00340278]
[1773333573743,3.95850487,2075.0,2074.1,0.00340278]
[1773333573744,0.64005153,2074.6,2074.1,0.00340278]
[1773333573947,0.64005153,2074.6,2074.0,0.022]
[1773333574647,0.10541361,2074.7,2074.0,0.6566194]
[1773333574955,0.10541361,2074.7,2074.0,0.66104057]
[1773333575250,0.64005153,2075.2,2074.0,0.66104057]
[1773333575452,6.50698596,2075.2,2074.0,0.63904057]
[1773333575647,0.61805153,2075.0,2074.2,0.6346194]
[1773333575848,0.61805153,2075.0,2074.4,0.022]
[1773333576050,3.95850487,2075.3,2074.2,0.6566194]
[1773333576051,0.64005153,2074.9,2074.2,0.6566194]
[1773333576450,0.088,2074.8,2074.2,0.6566194]
[1773333576650,0.50389467,2075.1,2074.2,0.6346194]
[1773333576951,0.61805153,2075.0,2074.3,0.022]
[1773333577248,0.64005153,2074.9,2074.3,0.022]
[1773333577454,3.95850487,2075.2,2074.3,0.022]
[1773333577455,0.64005153,2074.8,2074.3,0.022]
[1773333577654,0.64005153,2074.8,2074.3,0.6566194]
[1773333577849,0.64005153,2074.8,2074.3,0.022]
[1773333578049,0.64005153,2074.8,2074.3,0.6566194]
[1773333578455,0.41566043,2074.8,2074.3,0.6566194]
[1773333578756,0.00252957,2074.9,2074.3,0.6566194]
[1773333578952,3.95850487,2075.2,2074.3,0.6346194]
[1773333579154,10.25150487,2075.2,2074.7,0.022]
[1773333579449,10.25150487,2075.2,2074.3,0.6566194]
[1773333579850,0.066,2074.9,2074.3,0.6566194]
[1773333581456,0.00711059,2074.8,2074.3,0.72904834]
[1773333581657,0.066,2074.9,2074.3,0.72904834]
[1773333581955,0.00711059,2074.8,2074.1,0.022]
[1773333582159,0.09511059,2074.8,2074.1,0.73255837]
[1773333582452,0.24882263,2074.7,2074.0,0.00442117]
[1773333582652,0.00783263,2074.5,2073.9,0.022]
[1773333583055,0.00783263,2074.3,2073.7,0.022]
[1773333583353,0.24102,2074.4,2073.7,0.73807778]
[1773333583552,0.24102,2074.4,2073.7,0.022]
[1773333583754,0.24541589,2074.4,2073.7,0.02756267]
[1773333584146,0.00327661,2074.3,2073.7,0.74359435]
[1773333584346,0.00439589,2074.4,2073.7,0.74359435]
[1773333584554,6.315,2074.8,2073.7,0.72159435]
[1773333584953,6.293,2074.8,2074.4,0.022]
[1773333585153,6.293,2074.8,2074.2,0.022]
[1773333585555,0.066,2074.7,2074.2,0.74320593]
[1773333586551,0.066,2074.7,2074.2,0.022]
[1773333586757,0.066,2074.7,2074.0,0.022]
[1773333587057,0.088,2074.6,2074.0,0.022]
[1773333587759,0.24102,2074.4,2073.8,0.022]
[1773333588160,0.35278829,2074.5,2073.8,0.74529091]
[1773333588360,0.35239829,2074.5,2073.8,0.74529091]
[1773333588658,0.00113829,2074.4,2073.8,0.74529091]
[1773333588958,0.00113829,2074.4,2073.8,0.022]
[1773333589458,0.00113829,2074.4,2073.8,0.74636156]
[1773333589959,0.24340829,2074.4,2073.8,0.74636156]
[1773333591255,0.24202,2074.4,2073.8,0.74636156]
[1773333591456,5.97722664,2074.5,2073.8,0.74636156]
[1773333591859,0.12185015,2074.5,2073.8,0.74636156]
[1773333592352,0.11,2074.5,2073.8,0.74636156]
[1773333594350,0.00623708,2074.8,2073.8,0.72436156]
[1773333594755,5.95515389,2075.0,2074.6,0.022]
[1773333594957,5.83724277,2075.0,2074.6,0.69672435]
[1773333595254,0.2409,2075.4,2074.6,0.69672435]
[1773333595255,6.43492598,2075.4,2074.6,0.69672435]
[1773333595455,6.43492598,2075.4,2074.6,0.67472435]
[1773333595856,6.43992388,2075.4,2074.6,0.67472435]
[1773333596253,6.3209979,2075.4,2074.6,0.67472435]
[1773333596558,0.12179262,2075.3,2074.6,0.67472435]
[1773333597967,0.14275763,2075.2,2073.9,0.66654864]
[1773333598165,0.14282112,2075.0,2073.9,0.66654864]
[1773333599969,0.24094,2075.1,2073.9,0.66654864]
[1773333599970,0.1628105,2074.8,2073.9,0.66654864]
[1773333600871,0.17059692,2075.4,2074.3,0.6592262]
[1773333601365,0.1587208,2075.2,2074.3,0.6592262]
[1773333601670,0.1587208,2075.1,2074.3,0.6592262]
[1773333602363,0.1587208,2075.1,2074.7,0.022]
[1773333602364,0.01576292,2075.0,2074.7,0.022]
[1773333602564,0.01576292,2075.0,2074.7,0.68596424]
[1773333602759,6.315,2075.2,2074.7,0.68596424]
[1773333602965,6.315,2075.2,2074.7,0.66396424]
[1773333603166,6.47544566,2075.2,2074.7,0.66396424]
[1773333603362,0.16305779,2075.1,2074.1,0.66445681]
[1773333603560,6.315,2075.2,2074.1,0.66445681]
[1773333604573,0.1707123,2075.4,2074.3,0.66442383]
[1773333604771,6.315,2075.7,2074.7,0.66442383]
[1773333605070,0.17190779,2075.6,2074.7,0.66442383]
[1773333605468,0.17446481,2075.4,2074.7,0.66442383]
[1773333605768,0.17446481,2075.8,2074.7,0.66442383]
[1773333606064,0.17895925,2075.8,2074.7,0.66442383]
[1773333606566,0.17705445,2075.7,2074.7,0.66442383]
[1773333606766,0.17705445,2075.6,2074.7,0.66442383]
[1773333609373,0.20933076,2075.4,2074.7,0.66442383]
[1773333609568,6.76971076,2075.4,2074.7,0.66442383]
[1773333609768,0.45581076,2075.3,2074.7,0.66442383]
[1773333610272,0.4608527,2075.2,2074.7,0.66442383]
[1773333610572,6.54614346,2075.4,2074.7,0.66442383]
[1773333610867,0.35074808,2075.1,2073.8,0.65913007]
[1773333611072,0.53862955,2075.3,2074.2,0.65913007]
[1773333611372,0.53518792,2075.6,2074.4,0.65913007]
[1773333611768,0.53518792,2075.5,2074.4,0.65913007]
[1773333613364,6.80681746,2075.7,2074.4,0.65913007]
[1773333613569,6.80681746,2075.7,2074.6,0.65913007]
[1773333613971,0.00449444,2075.8,2074.8,0.65913007]
[1773333615271,0.50229621,2076.0,2075.0,0.65913007]
[1773333615876,6.35016297,2076.0,2075.0,0.65913007]
[1773333616073,0.50229621,2076.0,2075.0,0.65913007]
[1773333616372,0.50348097,2075.9,2075.0,0.65913007]
[1773333616967,0.49868436,2075.7,2075.0,0.65913007]
[1773333617171,0.49868436,2075.7,2074.5,0.65913007]
[1773333617373,6.81384756,2075.6,2074.5,0.65913007]
[1773333617573,0.47784756,2075.5,2074.9,0.022]
[1773333617768,0.47784756,2075.5,2074.9,0.68113007]
[1773333617969,0.47784756,2075.5,2074.9,0.022]
[1773333618374,0.4790187,2075.3,2074.9,0.022]
[1773333619376,0.4790187,2075.3,2074.8,0.65913007]
[1773333619668,0.5670187,2075.3,2074.8,0.28953881]
[1773333619874,0.67292964,2075.1,2074.5,0.022]
[1773333620776,6.98692964,2075.1,2074.5,0.022]
[1773333620976,0.71976481,2075.0,2074.5,0.022]
[1773333621178,0.71976481,2075.0,2074.4,0.65913007]
[1773333622173,6.56522594,2075.0,2074.4,0.65913007]
[1773333622368,0.71976481,2074.9,2074.4,0.65913007]
[1773333622568,0.71976481,2074.8,2073.9,0.022]
[1773333622773,0.71976481,2074.7,2074.1,0.77246404]
[1773333622974,0.49414344,2074.7,2074.1,0.77246404]
[1773333623276,0.26828039,2074.7,2074.1,0.022]
[1773333623572,0.39073697,2074.5,2074.1,0.77246404]
[1773333623777,0.39575317,2074.5,2073.9,0.77246404]
[1773333624784,0.39241503,2074.4,2073.9,0.022]
[1773333625081,0.0050162,2074.5,2073.6,0.75046404]
[1773333625082,5.84525783,2074.5,2073.6,0.75046404]
[1773333625376,6.23804137,2074.5,2073.6,0.75046404]
[1773333625770,0.39278354,2074.4,2073.6,0.75046404]
[1773333625969,0.39278354,2074.3,2073.6,0.75046404]
[1773333626169,0.39278354,2074.3,2073.6,0.75557686]
[1773333626973,6.70842069,2074.2,2073.6,0.75557686]
[1773333627678,6.314,2074.2,2073.6,0.75557686]
[1773333627983,6.315,2074.3,2073.6,0.75557686]
[1773333628277,0.0050162,2074.5,2073.6,0.75557686]
[1773333628477,0.41429947,2074.5,2073.6,0.75557686]
[1773333629075,0.0050162,2074.5,2073.6,0.75557686]
[1773333629379,0.0050162,2074.5,2073.7,0.75046404]
[1773333629772,0.22,2074.7,2073.9,0.75046404]
[1773333630679,0.22432604,2074.7,2073.9,0.75046404]
[1773333633675,0.22432604,2074.7,2074.1,0.75046404]
[1773333633984,0.43364876,2075.2,2074.7,0.75046404]
[1773333634277,0.52376531,2075.4,2074.7,0.75046404]
[1773333634479,7.7988439,2075.9,2073.9,2.78757893]
[1773333634480,0.50176531,2075.8,2074.8,0.77246404]
[1773333634675,0.50176531,2075.9,2074.8,0.77246404]
[1773333635080,0.044,2075.3,2074.8,0.77246404]
[1773333635277,0.55100936,2075.9,2074.8,0.77246404]
[1773333635475,0.55100936,2075.9,2074.8,0.75046404]
[1773333635673,0.52900936,2075.9,2075.5,0.022]
[1773333635877,0.52900936,2075.9,2075.5,0.77246404]
[1773333636075,0.3936065,2075.9,2075.5,0.77246404]
[1773333636282,0.044,2075.9,2075.5,0.77246404]
[1773333636678,0.44448548,2075.9,2075.5,0.0263264]
[1773333636885,0.04916298,2075.9,2075.5,0.77679044]
[1773333638782,0.44976652,2075.9,2075.3,0.77246404]
[1773333638982,0.46660354,2075.8,2075.3,0.77246404]
[1773333639182,0.066,2075.8,2075.3,0.77246404]
[1773333639790,0.46321365,2075.8,2075.3,0.77712598]
[1773333639982,0.066,2075.8,2075.3,0.77712598]
[1773333640191,0.46322345,2075.8,2075.3,0.77712598]
[1773333640492,0.46484918,2075.8,2075.3,0.77712598]
[1773333641388,0.00516298,2075.9,2075.3,0.77712598]
[1773333641589,0.00516298,2075.9,2075.3,0.75512598]
[1773333641782,0.44241685,2076.1,2075.7,0.022]
[1773333641986,0.44241685,2076.1,2075.5,0.77246404]
[1773333642393,0.00516298,2076.0,2075.5,0.77246404]
[1773333642694,0.044,2076.0,2075.5,0.77246404]
[1773333642890,0.04972875,2076.0,2075.5,0.77246404]
[1773333644494,0.50159953,2076.0,2075.5,0.022]
[1773333644795,0.066,2075.9,2075.3,0.79590646]
[1773333645094,0.72988025,2075.6,2074.9,0.79124452]
[1773333645292,0.72988025,2075.5,2074.9,0.79124452]
[1773333645797,0.11,2075.6,2074.9,0.79124452]
[1773333645987,0.11,2075.6,2074.9,0.7967837]
[1773333647193,0.83988025,2075.6,2074.9,0.7967837]
[1773333648393,0.11,2075.6,2074.9,0.7967837]
[1773333649594,0.83988025,2075.6,2074.9,0.7967837]
[1773333650596,0.83988025,2075.6,2074.9,0.02753918]
[1773333650898,0.72843584,2075.4,2074.7,0.7801779]
[1773333651595,0.132,2075.5,2074.7,0.7801779]
[1773333651793,0.132,2075.5,2074.7,0.78439038]
[1773333652196,0.72843584,2075.9,2074.7,0.78439038]
[1773333652402,0.72843584,2075.9,2074.7,0.76239038]
[1773333652696,0.70643584,2075.9,2075.5,0.022]
[1773333652893,0.70643584,2075.9,2075.3,0.7801779]
[1773333653296,0.066,2075.8,2075.3,0.7801779]
[1773333653503,0.72843584,2075.7,2075.3,0.7801779]
[1773333654499,0.79443584,2075.8,2075.3,0.7801779]
[1773333654689,0.79443584,2075.8,2075.1,0.022]
[1773333654894,0.81643584,2075.7,2075.1,0.7801779]
[1773333657202,0.088,2075.7,2075.1,0.7801779]
[1773333657601,0.81643584,2075.7,2075.1,0.7801779]
[1773333659506,0.81643584,2075.7,2075.1,0.022]
[1773333659909,0.81643584,2075.7,2075.1,0.7801779]
[1773333660500,0.81643584,2075.7,2075.1,0.022]
[1773333660711,0.72843584,2075.5,2074.9,0.022]
[1773333660908,7.15143584,2075.6,2074.9,0.7801779]
[1773333661109,0.83843584,2075.6,2074.9,0.7801779]
[1773333661309,0.11,2075.6,2074.9,0.7801779]
[1773333661712,0.83843584,2075.6,2074.9,0.7801779]
[1773333662411,0.83843584,2075.6,2074.9,0.022]
[1773333662711,0.83843584,2075.6,2074.9,0.7801779]
[1773333663313,0.83843584,2075.6,2074.9,0.022]
[1773333663513,0.72843584,2075.4,2074.7,0.02621248]
[1773333663705,0.72843584,2075.4,2074.7,0.78439038]
[1773333664616,0.132,2075.5,2074.7,0.78439038]
[1773333664813,0.132,2075.5,2074.9,0.7581779]
[1773333666019,0.86043584,2075.5,2074.9,0.7581779]
[1773333666920,0.132,2075.5,2074.9,0.7581779]
[1773333667110,0.86043584,2075.5,2074.9,0.7581779]
[1773333668316,0.72843584,2075.4,2074.7,0.78439038]
[1773333669419,0.72843584,2075.4,2074.7,0.02621248]
[1773333670319,0.72843584,2075.4,2074.5,0.022]
[1773333670320,0.72843584,2075.2,2074.5,0.022]
[1773333670522,6.55143075,2075.2,2074.5,0.022]
[1773333670817,0.72843584,2075.0,2074.3,0.022]
[1773333671017,5.82299491,2075.0,2074.3,0.7801779]
[1773333671215,0.72843584,2075.0,2074.3,0.78525526]
[1773333671416,0.72843584,2074.9,2074.3,0.78525526]
[1773333672618,6.313,2075.1,2074.3,0.78525526]
[1773333672619,0.72843584,2075.1,2074.3,0.78525526]
[1773333673209,0.90443584,2075.3,2074.3,0.78525526]
[1773333673415,0.72843584,2075.2,2074.3,0.78525526]
[1773333673621,0.96937584,2075.1,2074.3,0.02707736]
[1773333673810,0.72843584,2074.9,2074.1,0.7801779]
[1773333674010,0.72843584,2074.7,2074.1,0.7801779]
[1773333674420,0.72843584,2074.7,2074.1,0.022]
[1773333674822,0.72843584,2074.7,2074.1,0.02820117]
[1773333675217,0.72843584,2074.7,2074.1,0.78637907]
[1773333675417,0.72843584,2074.9,2074.1,0.78637907]
[1773333675714,5.81142644,2075.1,2074.1,0.78637907]
[1773333675915,0.72843584,2075.1,2074.1,0.78637907]
[1773333676325,0.72843584,2075.0,2074.1,0.78637907]
[1773333678227,0.72843584,2075.0,2074.3,0.7581779]
[1773333678424,0.198,2075.2,2074.6,0.24099]
[1773333678629,0.198,2075.2,2074.7,0.7581779]
[1773333679325,0.92643584,2075.2,2074.7,0.7581779]
[1773333679524,0.198,2075.2,2074.7,0.7581779]
[1773333680228,0.72843584,2075.1,2074.2,0.7581779]
[1773333680528,0.76913617,2075.1,2074.2,0.7581779]
[1773333680730,0.198,2075.2,2074.2,0.7581779]
[1773333680930,0.198,2075.2,2074.4,0.73982077]
[1773333681826,0.96713617,2075.2,2074.4,0.98107077]
[1773333682030,0.96713617,2075.2,2074.7,0.73982077]
[1773333682227,0.76913617,2075.1,2074.5,0.73982077]
[1773333682621,0.76913617,2075.1,2074.1,0.76802194]
[1773333683125,0.76913617,2075.0,2074.1,0.02820117]
[1773333683730,0.76913617,2074.9,2074.1,0.02820117]
[1773333685927,0.76913617,2074.8,2073.9,0.76182077]
[1773333686331,0.76913617,2074.7,2073.9,0.76182077]
[1773333686832,0.76913617,2074.7,2073.9,0.76612621]
[1773333687636,0.76913617,2074.7,2073.9,0.02630544]
[1773333687931,0.76913617,2074.7,2073.9,0.76612621]
[1773333690735,0.76913617,2074.7,2073.9,0.02630544]
[1773333691036,0.76913617,2074.7,2073.9,0.76612621]
[1773333692237,0.98913617,2075.1,2074.3,0.73982077]
[1773333692538,0.22,2075.1,2074.3,0.73982077]
[1773333693232,0.76913617,2075.0,2074.5,0.73982077]
[1773333693845,0.76913617,2075.0,2074.1,0.73982077]